Cogmind - Beta 10.2 @@@ ROGUE MODE // 2020.11.30 @ 12:31:12 // Halloween2020/ForbiddenLore Player: CrossedViper Result: Destroyed by D-53 Grenadier with Mini Grenade Launcher Performance ------------- Evolutions (0) 0 Regions Visited (4) 800 Robots Destroyed (22) 110 Value Destroyed (407) 407 Prototype IDs (23) 460 Alien Tech Used (0) 0 Bonus (276) 276 TOTAL SCORE: 2053 Bonus ------- Aligned with FarCom 300 Friendly Fire -24 Cogmind --------- Core Integrity 0/250 Matter 269/300 Energy 100/100 System Corruption 0% Temperature Cool (0) Movement Treading (160) Location -9/Mines Parts ------- > --- POWER (1) -------- (None) > --- PROPULSION (2) --- Light Treads Light Treads > --- UTILITY (2) ------ Large Storage Unit Large Storage Unit > --- WEAPON (2) ------- Light Cannon Improved Light Cannon > --- INVENTORY (16) --- Ion Engine Light Treads Aluminum Leg High-capacity Storage Unit Medium Armor Plating EM Pulse Gun Light Assault Rifle Improved Light Cannon Improved Light Cannon Improved Light Cannon EMP Blaster Rocket Launcher Rocket Launcher Rocket Launcher Rocket Launcher Peak State ------------ > --- POWER ------------ Light Ion Engine > --- PROPULSION ------- Light Treads Light Treads > --- UTILITY ---------- Large Storage Unit Large Storage Unit > --- WEAPON ----------- Light Cannon Improved Light Cannon > --- INVENTORY -------- Ion Engine Light Treads Aluminum Leg High-capacity Storage Unit Medium Armor Plating EM Pulse Gun Light Assault Rifle Improved Light Cannon Improved Light Cannon Improved Light Cannon EMP Blaster Rocket Launcher Rocket Launcher Rocket Launcher [Rating: 10] Favorites ----------- Power Light Ion Engine Engine Light Ion Engine Propulsion Aluminum Leg Treads Light Treads Leg Aluminum Leg Utility Large Storage Unit Storage Large Storage Unit Weapon Light Assault Rifle Energy Gun Medium Laser Ballistic Gun Light Assault Rifle Ballistic Cannon Light Cannon Launcher Grenade Launcher Build | -11 -10 -10 -10 -9 ------- Run | Scr Mat Min Exi Min Slots Evolved . | . . . . . Power . | . . . . . Propulsion . | . . . . . Utility . | . . . . . Weapon . | . . . . . Parts Attached 17 | . 9 1 . 7 Power 2 | . 2 . . . Engine 2 | . 2 . . . Core . | . . . . . Reactor . | . . . . . Propulsion 4 | . 1 . . 3 Treads 3 | . . . . 3 Leg 1 | . 1 . . . Wheel . | . . . . . Hover . | . . . . . Flight . | . . . . . Utility 3 | . 3 . . . Device . | . . . . . Storage 3 | . 3 . . . Processor . | . . . . . Hackware . | . . . . . Protection . | . . . . . Artifact . | . . . . . Weapon 8 | . 3 1 . 4 Energy Gun . | . . . . . Energy Cannon . | . . . . . Ballistic Gun 5 | . 2 1 . 2 Ballistic Cannon 2 | . . . . 2 Launcher 1 | . 1 . . . Special Weapon . | . . . . . Impact Weapon . | . . . . . Slashing Weapon . | . . . . . Piercing Weapon . | . . . . . Special Melee Weapon . | . . . . . Unidentified Prototypes . | . . . . . Parts Lost 3 | . . . . 3 Power 1 | . . . . 1 Propulsion 2 | . . . . 2 Utility . | . . . . . Weapon . | . . . . . Highest Loss Streak 2 | . . . . 2 Average Slot Usage (%) 99 | . 98 100 100 99 Engine 13 | . 13 14 14 13 Treads 3 | . . . . 21 Leg 24 | . 27 28 28 6 Storage 27 | . 27 28 28 28 Energy Gun 1 | . 5 . . . Ballistic Gun 24 | . 21 28 28 22 Naked Turns . | . . . . . Heaviest Build 42 | 11 38 38 38 42 Greatest Support 40 | 20 20 20 20 40 Greatest Overweight (x) 3 | . 3 1 1 1 Average Overweight (x) . | . . 1 1 . Largest Inventory Capacity 16 | . 16 16 16 16 Average Capacity 14 | . 12 16 16 16 Most Carried 16 | . 16 16 16 16 Average Carried 13 | . 9 16 16 15 Final Capacity 16 | 6 16 16 16 16 Final Carried 16 | 6 16 16 16 15 Class Distribution -------------------- 100% | Mutant Dominant Class ---------------- Mutant | -10/Materials Mutant | -10/Mines Mutant | -10/Exiles Mutant | -9/Mines Resources | -11 -10 -10 -10 -9 ----------- Run | Scr Mat Min Exi Min Matter Collected 593 | 200 159 134 . 100 Remotely . | . . . . . Salvage Created 536 | . 228 163 . 145 Parts 46 | . 19 19 . 8 Haulers Intercepted 1 | . 1 . . . Recyclers Shooed 1 | . 1 . . . Parts Field Recycled . | . . . . . Retrieved Matter . | . . . . . Parts Self-Destructed . | . . . . . Prevented . | . . . . . Kills | -11 -10 -10 -10 -9 ------- Run | Scr Mat Min Exi Min Combat Hostiles Destroyed 18 | . 9 5 . 4 Guns 16 | . 7 5 . 4 AOE 2 | . 2 . . . Classes Destroyed 6 | . 4 1 . 1 Worker 2 | . 1 1 . . Tunneler 1 | . . 1 . . Hauler 1 | . 1 . . . Swarmer 11 | . 6 3 . 2 Grunt 5 | . 3 2 . . Sentry 2 | . . . . 2 Best Kill Streak 7 | . 7 3 . 2 Combat Bots Only 3 | . 3 3 . 2 Max Kills in Single Turn 2 | . 2 1 . 1 Gunslinging 1 | . 1 . . . Exploded 1 | . 1 . . . Melee . | . . . . . Uniques/NPCs Destroyed . | . . . . . Combat | -11 -10 -10 -10 -9 -------- Run | Scr Mat Min Exi Min Damage Taken 830 | . 149 125 . 556 Core 267 | . 47 39 . 181 Absorbed by Shields . | . . . . . Core Remaining (%) 100 | 100 . . . . Volleys Fired 69 | . 28 19 2 20 Largest 2 | . 2 2 2 2 Hottest 74 | . 70 40 40 74 Shots Fired 133 | . 51 38 4 40 Gun 125 | . 47 38 4 36 Cannon 4 | . . . . 4 Launcher 4 | . 4 . . . Special . | . . . . . Kinetic 115 | . 33 38 4 40 Thermal 14 | . 14 . . . Explosive 4 | . 4 . . . Electromagnetic . | . . . . . Robot Hit Streak 15 | . 5 11 . 15 Robot Miss Streak 5 | . 3 2 . 5 Penetration Max . | . . . . . Secondary Targets 3 | . 2 1 . . Max Gunslinging Chain 1 | . 1 1 . . Shots Hit Robots 72 | . 27 23 . 22 Core Hits 39 | . 17 13 . 9 Critical Hits 1 | . 1 . . . Critical Kills 1 | . 1 . . . Critical Parts Destroyed . | . . . . . Melee Attacks . | . . . . . Impact . | . . . . . Slashing . | . . . . . Piercing . | . . . . . Sneak Attacks . | . . . . . Combat Hostiles . | . . . . . Follow-up Attacks . | . . . . . Damage Inflicted 1055 | . 521 321 . 213 Guns 779 | . 280 321 . 178 Cannons 35 | . . . . 35 Explosions 237 | . 237 . . . Melee . | . . . . . Ramming 4 | . 4 . . . Kinetic 686 | . 152 321 . 213 Thermal 128 | . 128 . . . Explosive 237 | . 237 . . . Electromagnetic . | . . . . . Impact . | . . . . . Slashing . | . . . . . Piercing . | . . . . . Highest Corruption . | . . . . . Average Corruption . | . . . . . Corruption Purged . | . . . . . Overload Shots . | . . . . . Overflow Damage . | . . . . . Projectiles . | . . . . . Explosions . | . . . . . Melee . | . . . . . Knockbacks 1 | . . . . 1 Impact . | . . . . . Kinetic 1 | . . . . 1 Secondary . | . . . . . Self-Inflicted Damage 2 | . 2 . . . Shots 1 | . 1 . . . Rammed . | . . . . . Targets Rammed 1 | . 1 . . . Kicked 1 | . 1 . . . Crushed . | . . . . . Highest Temperature 111 | . 111 15 . 9 Average Temperature 33 | . 42 8 . 9 Received Heat Transfer 174 | . 42 51 . 81 Siege Activations . | . . . . . Robots Corrupted . | . . . . . Combat Hostiles . | . . . . . Parts Fried . | . . . . . Impact Corruptions . | . . . . . Robots Melted . | . . . . . Combat Hostiles . | . . . . . Parts Melted . | . . . . . Heat Transferred 370 | . 370 . . . Parts Sabotaged . | . . . . . Parts Stolen . | . . . . . Parts Stripped . | . . . . . Power Chain Reactions . | . . . . . Missiles Intercepted . | . . . . . Alert | -11 -10 -10 -10 -9 ------- Run | Scr Mat Min Exi Min Peak Influence 162 | . 162 143 . 85 Initial 23 | . . 23 . . Average 49 | . 70 29 . 50 Maximum Alert Level . | . . . . . Low Security (%) 100 | . 100 100 . 100 Level 1 . | . . . . . Level 2 . | . . . . . Level 3 . | . . . . . Level 4 . | . . . . . Level 5 . | . . . . . High Security . | . . . . . Max Security . | . . . . . Squads Dispatched 1 | . 1 . . . Investigation . | . . . . . Extermination . | . . . . . Reinforcement 1 | . 1 . . . Assault . | . . . . . Garrison . | . . . . . Intercept . | . . . . . Construction Impeded . | . . . . . Haulers Reinforced . | . . . . . Stealth | -11 -10 -10 -10 -9 --------- Run | Scr Mat Min Exi Min Distress Signals 1 | . 1 . . . Communications Jammed . | . . . . . Distress Signals . | . . . . . Times Spotted 40 | . 24 5 4 7 Peak Tracking Total 9 | . 5 3 9 3 Tactical Retreats 6 | . 6 . . . Traps | -11 -10 -10 -10 -9 ------- Run | Scr Mat Min Exi Min Traps Triggered 2 | . 2 . . . Indirectly . | . . . . . Trap Hack Attempts . | . . . . . Triggered . | . . . . . Disarmed . | . . . . . Reprogrammed . | . . . . . Reused . | . . . . . Traps Extracted . | . . . . . Installed . | . . . . . Triggered . | . . . . . Machines | -11 -10 -10 -10 -9 ---------- Run | Scr Mat Min Exi Min Machines Disabled 3 | . 2 . 1 . Max in Single Turn 2 | . 2 . 1 . Machines Sabotaged . | . . . . . Garrisons Compromised . | . . . . . Overloaded Fab Kills . | . . . . . Fab Network Shutdowns . | . . . . . Hacking | -11 -10 -10 -10 -9 --------- Run | Scr Mat Min Exi Min Machines Accessed 5 | . 3 . 2 . Terminals 3 | . 3 . . . Fabricators . | . . . . . Repair Stations . | . . . . . Recycling Units . | . . . . . Scanalyzers . | . . . . . Garrison Access . | . . . . . Total Hacks 8 | . 6 . 2 . Successful 5 | . 3 . 2 . Failed 3 | . 3 . . . Catastrophic . | . . . . . Database Lockouts . | . . . . . Manual 7 | . 6 . 1 . Terminals 6 | . 6 . . . Fabricators . | . . . . . Repair Stations . | . . . . . Recycling Units . | . . . . . Scanalyzers . | . . . . . Garrison Access . | . . . . . Terminal Hacks 3 | . 1 . 2 . Record 1 | . . . 1 . Unreport Threat 1 | . 1 . . . EX-Prototype ID Bank 1 | . . . 1 . Fabricator Hacks . | . . . . . Repair Station Hacks . | . . . . . Recycling Unit Hacks . | . . . . . Scanalyzer . | . . . . . Garrison Access Hacks . | . . . . . Unauthorized Hacks 2 | . 2 . . . Terminals 2 | . 2 . . . Botnet 2 | . 2 . . . Fabricators . | . . . . . Repair Stations . | . . . . . Recycling Units . | . . . . . Scanalyzers . | . . . . . Garrison Access . | . . . . . Data Cores Recovered . | . . . . . Used . | . . . . . Hacking Detections 2 | . 2 . . . Full Trace Events . | . . . . . Feedback Events . | . . . . . Feedback Blocked . | . . . . . Robot Schematics Acquired . | . . . . . Robots Built . | . . . . . Matter . | . . . . . Time . | . . . . . Total Robot Build Rating . | . . . . . Part Schematics Acquired . | . . . . . Parts Built . | . . . . . Matter . | . . . . . Time . | . . . . . Total Part Build Rating . | . . . . . Parts Repaired . | . . . . . Time . | . . . . . Parts Recycled . | . . . . . Recycled Matter . | . . . . . Retrieved Matter . | . . . . . Retrieved Components . | . . . . . Parts Scanalyzed . | . . . . . Part Schematics Acquired . | . . . . . Parts Damaged . | . . . . . Bothacking | -11 -10 -10 -10 -9 ------------ Run | Scr Mat Min Exi Min Used RIF Installer . | . . . . . Robots Hacked . | . . . . . Non-combat . | . . . . . Combat . | . . . . . Robot Hacks Applied . | . . . . . Relay Couplers Released . | . . . . . Robots Rewired . | . . . . . Allies Hacked . | . . . . . Hacks Repelled . | . . . . . Allies | -11 -10 -10 -10 -9 -------- Run | Scr Mat Min Exi Min Total Allies 3 | . . 3 . . Largest Group 3 | . . 3 3 . Highest-Rated Group 40 | . . 40 40 . Highest-Rated Ally 16 | . . 16 16 . Total Orders . | . . . . . Ally Attacks 10 | . . . 10 . Total Damage 111 | . . . 111 . Kills 2 | . . . 2 . Allies Corrupted . | . . . . . Allies Melted . | . . . . . Intel | -11 -10 -10 -10 -9 ------- Run | Scr Mat Min Exi Min Robot Analysis Total . | . . . . . Derelict Logs Recovered 2 | . . 2 . . Drone Launches . | . . . . . Drone Recoveries . | . . . . . Exploration | -11 -10 -10 -10 -9 ------------- Run | Scr Mat Min Exi Min Turns Passed 3129 | . 1011 1126 432 560 Spaces Moved 1973 | 1 670 712 285 305 Core . | . . . . . Treads 244 | . . . . 244 Legs 1729 | 1 670 712 285 61 Wheels . | . . . . . Hover . | . . . . . Flight . | . . . . . Fastest Speed 120 | 120 120 150 150 150 Average Speed 146 | 120 133 150 150 161 Slowest Speed 210 | 120 210 150 150 180 Overloaded Moves . | . . . . . Propulsion Burnouts . | . . . . . Robots Hopped . | . . . . . Cave-ins Triggered . | . . . . . Exploration Rate (%) 66 | 2 96 98 60 78 Regions Visited 4 Branch Regions 3 Pre-discovered Areas 1 | . . . 1 . Known Exits Taken . | . . . . . Unknown Exits Taken 4 | 1 1 1 1 . Scrap Searched 3 | . . 1 . 2 Spaces Dug 10 | . 10 . . . Terrain Destroyed 19 | . 19 . . . Melee . | . . . . . Projectile . | . . . . . AOE 19 | . 19 . . . Terrain Rammed . | . . . . . Walls Destroyed . | . . . . . Machines Disabled . | . . . . . Actions | -11 -10 -10 -10 -9 --------- Run | Scr Mat Min Exi Min Total 2104 | . 740 736 286 342 Wait 5 | . 1 4 . . Move 1969 | . 669 711 284 305 Hop . | . . . . . Pick Up 26 | . 22 . . 4 Fast Attach 3 | . 2 . . 1 Attach 7 | . 3 . . 4 Detach . | . . . . . Swap 7 | . 4 1 . 2 Drop 17 | . 10 1 . 6 Fire 69 | . 28 19 2 20 Melee . | . . . . . Ram . | . . . . . Kick 1 | . 1 . . . Crush . | . . . . . Escape Stasis . | . . . . . Rewire . | . . . . . Trap . | . . . . . Miscellaneous . | . . . . . Route ------- -11/Scrapyard -10/Materials (discovered 5 exits: [*Mat x3] / [*Min x2]) -10/Mines (discovered 3 exits: [*Mat x2] / *Exi) -10/Exiles -9/Mines (discovered 1 exit: [*Mat]) History --------- Turn | Location | Event 1 | -11/Scrapyard | Discovered new exit (range 0) 1 | -11/Scrapyard | Entered Materials 217 | -10/Materials | Discovered new exit (range 16) 276 | -10/Materials | Discovered new exit (range 10) 316 | -10/Materials | Build established: Mutant 619 | -10/Materials | Discovered new exit (range 9) 779 | -10/Materials | Discovered new exit (range 15) 811 | -10/Materials | Discovered new exit (range 16) 1012 | -10/Materials | Entered Mines 1019 | -10/Mines | Received a Rocket Launcher from a helpful Derelict 1074 | -10/Mines | Learned Materials emergency access door positions 1540 | -10/Mines | Discovered new exit (range 5) 1917 | -10/Mines | Deemed a non-threat by the Exiles lab entrance 1917 | -10/Mines | Discovered new exit (range 5) 1998 | -10/Mines | Discovered new exit (range 5) 2048 | -10/Mines | Assisted by bots powering up and referring to "LRC-V3" 2138 | -10/Mines | Entered Exiles 2138 | -10/Exiles | Accompanied by 3 allies 2174 | -10/Exiles | Met 8R-AWN 2197 | -10/Exiles | Met EX-HEX 2243 | -10/Exiles | Met EX-BIN 2269 | -10/Exiles | Met EX-DEC 2275 | -10/Exiles | Learned location of Zion (-7) 2384 | -10/Exiles | Aligned with FarCom system 2386 | -10/Exiles | Given EX-Vault access code 2420 | -10/Exiles | Opened EX-Vault 2452 | -10/Exiles | Warned to stay clear of 0b10 Research branches 2522 | -10/Exiles | Attacked by the Exiles 2555 | -10/Exiles | Discovered new exit (range 12) 2570 | -10/Exiles | Entered Mines 2696 | -9/Mines | Core integrity fell below 50% 2994 | -9/Mines | Discovered new exit (range 10) 3117 | -9/Mines | Assembled infested the area 3122 | -9/Mines | Assisted by a Guerilla fighting off Assembled 3129 | -9/Mines | Core integrity fell below 20% 3130 | -9/Mines | Destroyed by D-53 Grenadier with Mini Grenade Launcher Last Messages --------------- 03023_ Found EMP Blaster. 03023_ Found 19 Matter. 03026_ Dropped Rocket Launcher. 03027_ Acquired EMP Blaster. 03028_ Dropped Lgt. Assault Rifle. 03032_ Acquired Rocket Launcher. 03117_ ALERT: Infestation in the mines, dispatching Demolisher response squad. 03122_ A derelict emerges from the shadows: "You need to get out of here! I've been tracking a group of Assembled to figure out where they're coming from, and they're closing on this area, come on!" 03124_ C-30 ARC bursts open, deploying its payload. 03124_ D-53 Grenadier unfolds itself. 03124_ Lgt. Ion Engine destroyed. 03124_ Pressure Siphon disabled. 03125_ OI-1R4(h): "I'll hold them off! Go on ahead or try to find another way!" 03128_ D-53 Grenadier knocked back. 03129_ The unstable cave ceiling collapses. 03129_ HV Slug penetrates Wall. Map ----- +----------------------------------------------------+ | | | | | | | | | ??????????????????????????????????????????? | | ??????????????????????????????????????????? | | ??????????????????????????????????????????? | | ??????????????????????????????????????????? | | ??????????????????????????????????????????? | | ??????????????????????????????????????????? | | ??????????????????????????????????????????? | | ??????????????????????##??????????????????? | | ?????????????????????? ??????????????????? | | ?????????????????????? ??????????????????? | | ??????????????????????# ?????????????????? | | ??????????????????????# ?????????????????? | | ??????????????????????# ?????????????????? | | ?? ??????????????????# ???????????? ????? | | ? ???????????????????# d??????????? ???? | | ? ???????????????????## #???????? ????? | | ???????????????????## ######## ??????? | | #???????????????????# t ????????? | | #??????????????????## " $ ??????????? | | ##???????????????### d #???????????? | | #?????????####### ##???????????? | | #?????????# @ #???????????? | | #?????????????# #???????????? | | #?????????????## ##??######???? | | #??????????????### # #??## ##??? | | #????????????????## # ##### #??? | | #?????????# ####### ###### #??? | | #?????????# t #???? | | #?????????# h ##???? | | #?????????#### ##### ##????? | | ##????????????## ##???## #?????? | | ##??????????????## ??????## #?????? | | #????????????????### ???????## ##?????? | | ???????????????????# ????????## ##??????? | | ####???????????????# ##???????# #???????? | | ##??????????????# ? ??????# #???????? | | #??????????????# ?# ??????# #???????? | | #??????????????# ## ####### #???????? | | #???????????????# #???????? | | #??????????????## #???????? | | ##?????????????# ######???????? | | % #?????????????# ### ##????????????? | | = #######???????##????## ##????????????? | | # #??????????????## #????????????? | | ## #### #???????????????# ##???????????? | | ?# #????????????????????## #???????????? | +----------------------------------------------------+ Best States ------------- Heat Dissipation 25 Energy Generation 10 Energy Capacity 125 Matter Stores 300 Matter Capacity 300 Sight Range 16 Terrain Scan Density 10 Evasion (%) 40 Recoil Reduction 2 Item Schematics ----------------- None Robot Schematics ------------------ None Fabricated ------------ Nothing Alien Tech Used ----------------- None Achievements -------------- None Challenges ------------ None Game ------ Seed ScatterEtherialSlayer Manual? 0 Play Time 00:13:06 Cumulative 116.3 hours Start 2020.11.30 @ 12:19:26 End 2020.11.30 @ 12:31:12 Sessions 1 Manual Loads 0 Difficulty Rogue Special Mode Halloween2020/ForbiddenLore Game No. 123 Rogue 116 Adventurer 0 Explorer 7 Win Type - Total 1 Types 0/0/1/0/0/0/0/0/0 Lore% 55 Gallery% 82 Achievement% 64 Wizard Run 0 Options --------- ASCII 0 Keyboard 0 Movement Mouse Keybinds 0 Fullscreen 1 Font 18/X11 Map View 76x50 Tactical HUD 1 Map Filters NONE Filters NONE Steam 1 RUN: 08c8a5b4-425a-4ecd-9925-aa09de0ff9e4